[Event "Late-Titled-Tuesday-Blitz-April-30-2024"]
[Site "Chess.com"]
[Date "2024.04.30"]
[Round "5"]
[White "WPWPWP-2015"]
[Black "nitpicker"]
[Result "1-0"]
[WhiteElo "2483"]
[BlackElo "2235"]
[TimeControl "180+1"]
[EndTime "14:57:32 PDT"]
[Termination "WPWPWP-2015 won on time"]

1. e4 {[%clk 0:03:00.9]} 1... c5 {[%clk 0:02:59.7]} 2. Nf3 {[%clk 0:03:00.4]}
2... Nc6 {[%clk 0:02:58.6]} 3. d4 {[%clk 0:03:00.8]} 3... cxd4 {[%clk
0:02:58.9]} 4. Nxd4 {[%clk 0:03:01.7]} 4... Nf6 {[%clk 0:02:58.1]} 5. Nc3 {[%clk
0:03:02.1]} 5... d6 {[%clk 0:02:58.5]} 6. Bc4 {[%clk 0:02:49.8]} 6... Qb6 {[%clk
0:02:57.2]} 7. Ndb5 {[%clk 0:02:46.8]} 7... a6 {[%clk 0:02:53.5]} 8. Na3 {[%clk
0:02:37.7]} 8... e6 {[%clk 0:02:45.7]} 9. O-O {[%clk 0:02:37]} 9... Qc7 {[%clk
0:02:43.9]} 10. Bf4 {[%clk 0:02:19.4]} 10... Ne5 {[%clk 0:02:36.4]} 11. Bd3
{[%clk 0:02:10.6]} 11... Be7 {[%clk 0:02:34.2]} 12. Ne2 {[%clk 0:02:07.9]} 12...
b5 {[%clk 0:02:26.2]} 13. h3 {[%clk 0:02:05.9]} 13... Bb7 {[%clk 0:02:25.1]} 14.
Ng3 {[%clk 0:02:00.7]} 14... O-O {[%clk 0:02:12.1]} 15. Re1 {[%clk 0:01:59.5]}
15... Nfd7 {[%clk 0:02:00.5]} 16. c3 {[%clk 0:01:56.5]} 16... Nb6 {[%clk
0:01:53.1]} 17. Bf1 {[%clk 0:01:55]} 17... Rac8 {[%clk 0:01:48]} 18. Rc1 {[%clk
0:01:47.4]} 18... Rfd8 {[%clk 0:01:40.3]} 19. Qh5 {[%clk 0:01:43.6]} 19... g6
{[%clk 0:01:36.8]} 20. Qh6 {[%clk 0:01:40.7]} 20... Bf8 {[%clk 0:01:34.6]} 21.
Qh4 {[%clk 0:01:40.1]} 21... Bg7 {[%clk 0:01:31.8]} 22. Bg5 {[%clk 0:01:38.6]}
22... Rd7 {[%clk 0:01:24.3]} 23. Bf6 {[%clk 0:01:38.5]} 23... Na4 {[%clk
0:01:14.1]} 24. Rc2 {[%clk 0:01:35]} 24... Nxb2 {[%clk 0:01:05.6]} 25. Bxg7
{[%clk 0:01:30.7]} 25... Kxg7 {[%clk 0:01:02.9]} 26. Qg5 {[%clk 0:01:20.9]}
26... Qc5 {[%clk 0:00:16.2]} 27. Kh1 {[%clk 0:01:00.4]} 27... Qxa3 {[%clk
0:00:13.8]} 28. Nh5+ {[%clk 0:00:59.5]} 28... Kf8 {[%clk 0:00:13.4]} 29. Nf6
{[%clk 0:00:57.3]} 29... Rdc7 {[%clk 0:00:11.8]} 30. Nxh7+ {[%clk 0:00:55.2]}
30... Kg7 {[%clk 0:00:11.2]} 31. Nf6 {[%clk 0:00:53.2]} 31... Nbc4 {[%clk
0:00:09.1]} 32. f4 {[%clk 0:00:50.9]} 32... Nd7 {[%clk 0:00:08.3]} 33. Nh5+
{[%clk 0:00:47]} 33... Kf8 {[%clk 0:00:08.1]} 34. Qh6+ {[%clk 0:00:38.1]} 34...
Ke8 {[%clk 0:00:07.7]} 35. Ng7+ {[%clk 0:00:37.7]} 35... Ke7 {[%clk 0:00:07.9]}
36. Qg5+ {[%clk 0:00:36.6]} 36... Kf8 {[%clk 0:00:07.8]} 37. Qh6 {[%clk
0:00:35.4]} 37... Kg8 {[%clk 0:00:07.9]} 38. f5 {[%clk 0:00:30.4]} 38... Nce5
{[%clk 0:00:05.6]} 39. fxe6 {[%clk 0:00:25.3]} 39... fxe6 {[%clk 0:00:05]} 40.
Nxe6 {[%clk 0:00:25.1]} 40... Nf6 {[%clk 0:00:03.5]} 41. Rf2 {[%clk 0:00:23.1]}
41... Rh7 {[%clk 0:00:02.1]} 42. Qg5 {[%clk 0:00:20.3]} 42... Nfg4 {[%clk
0:00:02.2]} 43. Rd2 {[%clk 0:00:04.1]} 43... Qxc3 {[%clk 0:00:01.4]} 44. Rd3
{[%clk 0:00:02.6]} 44... Qxe1 {[%clk 0:00:01]} 45. Rf3 {[%clk 0:00:02]} 45...
Qxe4 {[%clk 0:00:00.3]} 46. Rf4 {[%clk 0:00:01.8]} 1-0

[Event "Late-Titled-Tuesday-Blitz-April-30-2024"]
[Site "Chess.com"]
[Date "2024.04.30"]
[Round "5"]
[White "imdvb6307"]
[Black "super_emi_26"]
[Result "0-1"]
[WhiteElo "2546"]
[BlackElo "2765"]
[TimeControl "180+1"]
[EndTime "14:57:33 PDT"]
[Termination "super_emi_26 won on time"]

1. d4 {[%clk 0:03:00.9]} 1... g6 {[%clk 0:03:00.9]} 2. Nf3 {[%clk 0:02:59.6]}
2... Bg7 {[%clk 0:03:01.8]} 3. c4 {[%clk 0:02:59.7]} 3... b6 {[%clk 0:03:00.4]}
4. Nc3 {[%clk 0:02:57.5]} 4... Bb7 {[%clk 0:03:00.1]} 5. e4 {[%clk 0:02:53.1]}
5... d6 {[%clk 0:03:00.2]} 6. Be2 {[%clk 0:02:38.1]} 6... Nf6 {[%clk 0:02:59.4]}
7. d5 {[%clk 0:02:38.1]} 7... c6 {[%clk 0:02:58]} 8. O-O {[%clk 0:02:34.8]} 8...
O-O {[%clk 0:02:57.9]} 9. Nd4 {[%clk 0:02:31.1]} 9... a6 {[%clk 0:02:43.1]} 10.
f3 {[%clk 0:02:10.6]} 10... b5 {[%clk 0:02:35.7]} 11. Be3 {[%clk 0:02:04.5]}
11... bxc4 {[%clk 0:02:30.8]} 12. dxc6 {[%clk 0:02:02.1]} 12... Nxc6 {[%clk
0:02:31.7]} 13. Nxc6 {[%clk 0:02:01.6]} 13... Bxc6 {[%clk 0:02:30.9]} 14. Bxc4
{[%clk 0:02:01.5]} 14... Nd7 {[%clk 0:02:12.9]} 15. Rc1 {[%clk 0:01:59.8]} 15...
Qa5 {[%clk 0:02:04.3]} 16. Rf2 {[%clk 0:00:49.6]} 16... Rac8 {[%clk 0:01:41.4]}
17. Rfc2 {[%clk 0:00:44.1]} 17... Nf6 {[%clk 0:01:35.3]} 18. Bd4 {[%clk
0:00:37.6]} 18... Kh8 {[%clk 0:01:27.5]} 19. Rb1 {[%clk 0:00:36.2]} 19... Bb7
{[%clk 0:01:21]} 20. b4 {[%clk 0:00:35.5]} 20... Qd8 {[%clk 0:01:18.8]} 21. Qe2
{[%clk 0:00:21.6]} 21... Nh5 {[%clk 0:00:52.8]} 22. Bxg7+ {[%clk 0:00:20.7]}
22... Kxg7 {[%clk 0:00:53.7]} 23. g3 {[%clk 0:00:20.3]} 23... Nf6 {[%clk
0:00:48.1]} 24. Rbc1 {[%clk 0:00:19]} 24... Qb6+ {[%clk 0:00:47.2]} 25. Kg2
{[%clk 0:00:19.1]} 25... Qxb4 {[%clk 0:00:47.1]} 26. Bd3 {[%clk 0:00:14.2]}
26... Qa5 {[%clk 0:00:45.8]} 27. Rb1 {[%clk 0:00:12]} 27... Ba8 {[%clk
0:00:43.9]} 28. Qd2 {[%clk 0:00:11.1]} 28... h5 {[%clk 0:00:42.7]} 29. h4 {[%clk
0:00:10.5]} 29... Rc5 {[%clk 0:00:42.3]} 30. Nd1 {[%clk 0:00:10.4]} 30... Qxd2+
{[%clk 0:00:40.9]} 31. Rxd2 {[%clk 0:00:10.7]} 31... a5 {[%clk 0:00:40.8]} 32.
Ne3 {[%clk 0:00:10.8]} 32... Rfc8 {[%clk 0:00:39.9]} 33. Kf2 {[%clk 0:00:09.8]}
33... Rc3 {[%clk 0:00:39.7]} 34. Ke2 {[%clk 0:00:09.6]} 34... Nd7 {[%clk
0:00:39.4]} 35. Rdb2 {[%clk 0:00:08.5]} 35... Ne5 {[%clk 0:00:38.9]} 36. Bc2
{[%clk 0:00:08.3]} 36... f5 {[%clk 0:00:34.1]} 37. f4 {[%clk 0:00:05]} 37...
Rxe3+ {[%clk 0:00:29.3]} 38. Kxe3 {[%clk 0:00:05]} 38... Nc4+ {[%clk 0:00:30]}
39. Kd3 {[%clk 0:00:02.9]} 39... Bxe4+ {[%clk 0:00:28.9]} 40. Kd4 {[%clk
0:00:01.5]} 40... Nxb2 {[%clk 0:00:28.8]} 41. Bxe4 {[%clk 0:00:01.8]} 41... Rc4+
{[%clk 0:00:15.3]} 42. Kd5 {[%clk 0:00:02.2]} 42... Rxe4 {[%clk 0:00:15.6]} 43.
Rxb2 {[%clk 0:00:01.9]} 43... Kf6 {[%clk 0:00:15.8]} 44. Rb5 {[%clk 0:00:01.5]}
44... Ra4 {[%clk 0:00:15.5]} 45. Rb2 {[%clk 0:00:00.9]} 45... Ra3 {[%clk
0:00:16]} 46. Re2 {[%clk 0:00:01.1]} 46... Rxg3 {[%clk 0:00:15.7]} 47. Re6+
{[%clk 0:00:00.7]} 47... Kf7 {[%clk 0:00:16.1]} 48. Re2 {[%clk 0:00:00.6]} 48...
Rg4 {[%clk 0:00:16.5]} 49. Rf2 {[%clk 0:00:00.4]} 49... Rxh4 {[%clk 0:00:16.7]}
50. Kc6 {[%clk 0:00:00.9]} 50... Rh3 {[%clk 0:00:17.2]} 51. Kb5 {[%clk
0:00:00.8]} 51... Ra3 {[%clk 0:00:17.4]} 0-1

[Event "Late-Titled-Tuesday-Blitz-April-30-2024"]
[Site "Chess.com"]
[Date "2024.04.30"]
[Round "5"]
[White "Shuvalov"]
[Black "Alex_Sahakyan2006"]
[Result "0-1"]
[WhiteElo "2630"]
[BlackElo "2821"]
[TimeControl "180+1"]
[EndTime "14:57:34 PDT"]
[Termination "Alex_Sahakyan2006 won by resignation"]

1. d4 {[%clk 0:03:00.9]} 1... Nf6 {[%clk 0:03:00.3]} 2. c4 {[%clk 0:03:00.4]}
2... c5 {[%clk 0:03:00.8]} 3. d5 {[%clk 0:02:59.4]} 3... b5 {[%clk 0:03:01.3]}
4. cxb5 {[%clk 0:03:00.3]} 4... a6 {[%clk 0:03:01.9]} 5. bxa6 {[%clk 0:03:01.2]}
5... g6 {[%clk 0:03:02.6]} 6. Nc3 {[%clk 0:03:00.9]} 6... Bg7 {[%clk 0:03:03.1]}
7. e4 {[%clk 0:03:01.3]} 7... O-O {[%clk 0:03:03.7]} 8. e5 {[%clk 0:03:01.7]}
8... Ne8 {[%clk 0:03:04.1]} 9. h4 {[%clk 0:03:02.3]} 9... Bxe5 {[%clk
0:03:04.5]} 10. Bh6 {[%clk 0:03:00.4]} 10... Ng7 {[%clk 0:03:04.5]} 11. Nf3
{[%clk 0:03:00.1]} 11... Bf6 {[%clk 0:03:04.3]} 12. Qd2 {[%clk 0:03:00.1]} 12...
Bxa6 {[%clk 0:02:56]} 13. h5 {[%clk 0:02:59]} 13... Bxf1 {[%clk 0:02:56.2]} 14.
Kxf1 {[%clk 0:02:58.7]} 14... Qa5 {[%clk 0:02:40.4]} 15. hxg6 {[%clk 0:02:49.2]}
15... fxg6 {[%clk 0:02:37.1]} 16. Ng5 {[%clk 0:02:43.8]} 16... Bd4 {[%clk
0:02:26.5]} 17. Nf3 {[%clk 0:02:16.3]} 17... Bf6 {[%clk 0:01:37.8]} 18. Re1
{[%clk 0:02:15.4]} 18... d6 {[%clk 0:00:32.5]} 19. Ng5 {[%clk 0:01:58.4]} 19...
Bd4 {[%clk 0:00:22.5]} 20. Rxe7 {[%clk 0:01:30.2]} 20... Ra7 {[%clk 0:00:23]}
21. Rxa7 {[%clk 0:01:19.4]} 21... Qxa7 {[%clk 0:00:23.4]} 22. Nf3 {[%clk
0:01:18.2]} 22... Rxf3 {[%clk 0:00:22.5]} 23. gxf3 {[%clk 0:01:18]} 23... Nf5
{[%clk 0:00:23.4]} 24. Nb5 {[%clk 0:01:03.4]} 24... Qxa2 {[%clk 0:00:17.3]} 25.
Qe2 {[%clk 0:01:00.2]} 25... Be5 {[%clk 0:00:15.5]} 26. f4 {[%clk 0:00:57.8]}
26... Qxd5 {[%clk 0:00:15.7]} 27. Rh3 {[%clk 0:00:55.7]} 27... Nc6 {[%clk
0:00:04]} 28. fxe5 {[%clk 0:00:54.4]} 28... Nxe5 {[%clk 0:00:04.9]} 29. Bf4
{[%clk 0:00:51.8]} 29... c4 {[%clk 0:00:03]} 30. Bxe5 {[%clk 0:00:51.1]} 30...
dxe5 {[%clk 0:00:02.8]} 31. Nc3 {[%clk 0:00:50.1]} 31... Qd4 {[%clk 0:00:02.8]}
32. Qe4 {[%clk 0:00:43.7]} 32... h5 {[%clk 0:00:02.5]} 33. Qxd4 {[%clk
0:00:42.5]} 33... exd4 {[%clk 0:00:02.9]} 34. Ne4 {[%clk 0:00:41.7]} 34... Kf7
{[%clk 0:00:03.1]} 35. Rf3 {[%clk 0:00:39]} 35... Ke6 {[%clk 0:00:03.2]} 36. Rh3
{[%clk 0:00:35.5]} 36... Kd5 {[%clk 0:00:03.3]} 37. Nd2 {[%clk 0:00:35.4]} 37...
d3 {[%clk 0:00:03.2]} 38. Nb1 {[%clk 0:00:35.3]} 38... Kc5 {[%clk 0:00:03.2]}
39. Ke1 {[%clk 0:00:35]} 39... Kb4 {[%clk 0:00:03.6]} 40. Kd2 {[%clk 0:00:34.9]}
40... Kb3 {[%clk 0:00:04]} 41. Kc1 {[%clk 0:00:33.8]} 41... Nd4 {[%clk 0:00:04]}
42. Nd2+ {[%clk 0:00:33.8]} 42... Kb4 {[%clk 0:00:04.6]} 43. Rh4 {[%clk
0:00:32.7]} 43... Kc5 {[%clk 0:00:04.5]} 44. Ne4+ {[%clk 0:00:31.3]} 44... Kb4
{[%clk 0:00:04.7]} 45. Nd6 {[%clk 0:00:31.2]} 45... Kc5 {[%clk 0:00:04.5]} 46.
Nb7+ {[%clk 0:00:30.7]} 46... Kd5 {[%clk 0:00:05]} 47. Rf4 {[%clk 0:00:28.3]}
47... Ne2+ {[%clk 0:00:04.9]} 48. Kd2 {[%clk 0:00:28.4]} 48... Nxf4 {[%clk
0:00:05.8]} 49. Na5 {[%clk 0:00:25.8]} 49... h4 {[%clk 0:00:05.8]} 50. Ke3
{[%clk 0:00:26.2]} 50... h3 {[%clk 0:00:06]} 51. Kxf4 {[%clk 0:00:25.7]} 51...
h2 {[%clk 0:00:06.3]} 0-1

[Event "Late-Titled-Tuesday-Blitz-April-30-2024"]
[Site "Chess.com"]
[Date "2024.04.30"]
[Round "5"]
[White "KebabJangles"]
[Black "Balla_Tamas"]
[Result "1-0"]
[WhiteElo "2320"]
[BlackElo "2484"]
[TimeControl "180+1"]
[EndTime "14:57:35 PDT"]
[Termination "KebabJangles won by checkmate"]

1. d4 {[%clk 0:03:00.9]} 1... d5 {[%clk 0:03:00]} 2. c4 {[%clk 0:03:00.6]} 2...
e6 {[%clk 0:03:00.1]} 3. Nf3 {[%clk 0:02:54.4]} 3... c5 {[%clk 0:03:00.1]} 4.
cxd5 {[%clk 0:02:53.3]} 4... exd5 {[%clk 0:03:01]} 5. Nc3 {[%clk 0:02:52.6]}
5... Nc6 {[%clk 0:03:00.8]} 6. g3 {[%clk 0:02:52.8]} 6... Nf6 {[%clk 0:03:01]}
7. Bg2 {[%clk 0:02:52.2]} 7... cxd4 {[%clk 0:03:01.6]} 8. Nxd4 {[%clk
0:02:51.8]} 8... Bc5 {[%clk 0:03:02.2]} 9. Nb3 {[%clk 0:02:50.3]} 9... Bb6
{[%clk 0:03:02.4]} 10. Nxd5 {[%clk 0:02:42.5]} 10... Be6 {[%clk 0:03:02.4]} 11.
Nxf6+ {[%clk 0:02:38.6]} 11... Qxf6 {[%clk 0:03:01.2]} 12. O-O {[%clk
0:02:32.2]} 12... O-O {[%clk 0:02:59]} 13. Bxc6 {[%clk 0:02:28.8]} 13... bxc6
{[%clk 0:02:58.3]} 14. Qc2 {[%clk 0:02:26.2]} 14... Bh3 {[%clk 0:02:56.5]} 15.
Bf4 {[%clk 0:02:18.5]} 15... Bxf1 {[%clk 0:02:52.9]} 16. Rxf1 {[%clk 0:02:17.4]}
16... Rfe8 {[%clk 0:02:53.2]} 17. Bc1 {[%clk 0:02:02.9]} 17... h6 {[%clk
0:02:51.5]} 18. e3 {[%clk 0:02:02.3]} 18... Rad8 {[%clk 0:02:50.3]} 19. Bd2
{[%clk 0:02:02.3]} 19... Qe6 {[%clk 0:02:42.1]} 20. Bc3 {[%clk 0:01:55.5]} 20...
Qe4 {[%clk 0:02:41.8]} 21. Qe2 {[%clk 0:01:54]} 21... c5 {[%clk 0:02:13.9]} 22.
Nd2 {[%clk 0:01:50.3]} 22... Qe6 {[%clk 0:02:12.3]} 23. Nc4 {[%clk 0:01:48.7]}
23... Rd7 {[%clk 0:01:51]} 24. Ne5 {[%clk 0:01:46.8]} 24... Rde7 {[%clk
0:01:44.3]} 25. Nc4 {[%clk 0:01:26.2]} 25... Qh3 {[%clk 0:01:40.6]} 26. f3
{[%clk 0:01:21.5]} 26... Qe6 {[%clk 0:01:20.5]} 27. e4 {[%clk 0:01:19]} 27...
Rd7 {[%clk 0:01:17.6]} 28. b3 {[%clk 0:01:15.5]} 28... Red8 {[%clk 0:01:17.9]}
29. Kg2 {[%clk 0:01:00.9]} 29... Bc7 {[%clk 0:01:18]} 30. Rc1 {[%clk 0:00:51.1]}
30... Rd3 {[%clk 0:01:17.9]} 31. Nb2 {[%clk 0:00:50.2]} 31... R3d7 {[%clk
0:01:15.9]} 32. Nc4 {[%clk 0:00:50]} 32... Qg6 {[%clk 0:01:10.1]} 33. Ne3 {[%clk
0:00:35.6]} 33... h5 {[%clk 0:01:07.4]} 34. Nf5 {[%clk 0:00:33]} 34... Qg5
{[%clk 0:01:07.8]} 35. Rc2 {[%clk 0:00:29.3]} 35... Rd3 {[%clk 0:00:52.9]} 36.
h4 {[%clk 0:00:27.2]} 36... Qg6 {[%clk 0:00:48.5]} 37. Ne7+ {[%clk 0:00:26.9]}
37... Kh7 {[%clk 0:00:48.9]} 38. Nxg6 {[%clk 0:00:27.8]} 38... fxg6 {[%clk
0:00:49.6]} 39. e5 {[%clk 0:00:22.1]} 39... Bb6 {[%clk 0:00:39.4]} 40. e6 {[%clk
0:00:20.8]} 40... c4 {[%clk 0:00:39]} 41. e7 {[%clk 0:00:16.4]} 41... Re8 {[%clk
0:00:37]} 42. Qe5 {[%clk 0:00:16.6]} 42... Rxc3 {[%clk 0:00:07.9]} 43. Rxc3
{[%clk 0:00:15.2]} 43... cxb3 {[%clk 0:00:05.3]} 44. axb3 {[%clk 0:00:16.1]}
44... Ba5 {[%clk 0:00:04.7]} 45. Qxa5 {[%clk 0:00:14.5]} 45... Rxe7 {[%clk
0:00:05.4]} 46. Qc5 {[%clk 0:00:14.4]} 46... Re2+ {[%clk 0:00:05.7]} 47. Qf2
{[%clk 0:00:14.5]} 47... Rxf2+ {[%clk 0:00:05.9]} 48. Kxf2 {[%clk 0:00:15.4]}
48... Kh6 {[%clk 0:00:06.4]} 49. Rc7 {[%clk 0:00:15.7]} 49... g5 {[%clk
0:00:07.3]} 50. Rxa7 {[%clk 0:00:16.5]} 50... g6 {[%clk 0:00:08.1]} 51. Ra5
{[%clk 0:00:16.3]} 51... g4 {[%clk 0:00:08.2]} 52. f4 {[%clk 0:00:15.6]} 52...
Kg7 {[%clk 0:00:08.7]} 53. Re5 {[%clk 0:00:16.1]} 53... Kf6 {[%clk 0:00:09.2]}
54. b4 {[%clk 0:00:17]} 54... Kf7 {[%clk 0:00:09.5]} 55. Ke3 {[%clk 0:00:16.6]}
55... Kf6 {[%clk 0:00:10.1]} 56. Rg5 {[%clk 0:00:16.8]} 56... Kg7 {[%clk
0:00:10.4]} 57. b5 {[%clk 0:00:17.7]} 57... Kh6 {[%clk 0:00:11.3]} 58. b6 {[%clk
0:00:18.6]} 58... Kg7 {[%clk 0:00:11.9]} 59. b7 {[%clk 0:00:19.3]} 59... Kh6
{[%clk 0:00:12.2]} 60. b8=Q {[%clk 0:00:20.2]} 60... Kg7 {[%clk 0:00:12.5]} 61.
Qe8 {[%clk 0:00:20.5]} 61... Kh6 {[%clk 0:00:13.4]} 62. Qh8# {[%clk 0:00:20.6]}
1-0

[Event "Late-Titled-Tuesday-Blitz-April-30-2024"]
[Site "Chess.com"]
[Date "2024.04.30"]
[Round "5"]
[White "ab-lsv"]
[Black "ELPRIMO0O0"]
[Result "1-0"]
[WhiteElo "2374"]
[BlackElo "2543"]
[TimeControl "180+1"]
[EndTime "14:57:36 PDT"]
[Termination "ab-lsv won on time"]

1. d4 {[%clk 0:02:59.6]} 1... Nf6 {[%clk 0:02:58.7]} 2. c4 {[%clk 0:02:59.9]}
2... c5 {[%clk 0:02:57.7]} 3. d5 {[%clk 0:02:59.9]} 3... b5 {[%clk 0:02:57.5]}
4. cxb5 {[%clk 0:03:00.8]} 4... a6 {[%clk 0:02:56.8]} 5. bxa6 {[%clk 0:03:01.7]}
5... e6 {[%clk 0:02:56.3]} 6. Nc3 {[%clk 0:03:02.6]} 6... exd5 {[%clk
0:02:54.6]} 7. Nxd5 {[%clk 0:03:02.4]} 7... Be7 {[%clk 0:02:54.2]} 8. Nxe7
{[%clk 0:02:39.8]} 8... Qxe7 {[%clk 0:02:53.9]} 9. Bg5 {[%clk 0:02:33.9]} 9...
O-O {[%clk 0:02:50.2]} 10. e3 {[%clk 0:02:33.4]} 10... Nc6 {[%clk 0:02:42.2]}
11. Nf3 {[%clk 0:02:33]} 11... Rxa6 {[%clk 0:02:41.4]} 12. Be2 {[%clk
0:02:19.1]} 12... Rb6 {[%clk 0:02:39.9]} 13. b3 {[%clk 0:02:12.1]} 13... h6
{[%clk 0:02:39.4]} 14. Bxf6 {[%clk 0:02:05.2]} 14... Qxf6 {[%clk 0:02:40.3]} 15.
O-O {[%clk 0:02:05.4]} 15... Rd8 {[%clk 0:02:39.9]} 16. Qd5 {[%clk 0:02:00.6]}
16... d6 {[%clk 0:02:34.9]} 17. Rac1 {[%clk 0:01:48.2]} 17... Nb4 {[%clk
0:02:34.2]} 18. Qd2 {[%clk 0:01:47.5]} 18... Bb7 {[%clk 0:02:24.2]} 19. Rfd1
{[%clk 0:01:45.1]} 19... Ra8 {[%clk 0:02:16]} 20. a4 {[%clk 0:01:40]} 20... Ra5
{[%clk 0:02:13.4]} 21. Rc4 {[%clk 0:01:31.7]} 21... Bd5 {[%clk 0:02:05.4]} 22.
Rf4 {[%clk 0:01:25.3]} 22... Qe6 {[%clk 0:02:05.1]} 23. Bc4 {[%clk 0:01:23.7]}
23... Bxc4 {[%clk 0:01:55.3]} 24. Rxc4 {[%clk 0:01:17.6]} 24... d5 {[%clk
0:01:55.4]} 25. Rcc1 {[%clk 0:01:12.5]} 25... Qe4 {[%clk 0:01:39.7]} 26. h3
{[%clk 0:01:08.2]} 26... c4 {[%clk 0:01:26.4]} 27. bxc4 {[%clk 0:01:04]} 27...
dxc4 {[%clk 0:01:27.3]} 28. Qd8+ {[%clk 0:01:03.6]} 28... Kh7 {[%clk 0:01:24.1]}
29. Qxb6 {[%clk 0:01:03.2]} 29... Rxa4 {[%clk 0:01:24.3]} 30. Qd4 {[%clk
0:00:58.5]} 30... Qxd4 {[%clk 0:01:13.6]} 31. Rxd4 {[%clk 0:00:58.8]} 31... Nd3
{[%clk 0:01:12.6]} 32. Rcxc4 {[%clk 0:00:56]} 32... Ra1+ {[%clk 0:01:12]} 33.
Kh2 {[%clk 0:00:54.7]} 33... Nxf2 {[%clk 0:01:12.9]} 34. Rf4 {[%clk 0:00:51.6]}
34... f6 {[%clk 0:01:11.8]} 35. Rc7 {[%clk 0:00:51.2]} 35... Nd1 {[%clk
0:01:06.5]} 36. Rxf6 {[%clk 0:00:47.1]} 36... Nxe3 {[%clk 0:01:06.4]} 37. Rff7
{[%clk 0:00:47.4]} 37... Nf1+ {[%clk 0:01:05.2]} 38. Kg1 {[%clk 0:00:45.7]}
38... Ng3+ {[%clk 0:00:50.4]} 39. Kf2 {[%clk 0:00:45.8]} 39... Nh5 {[%clk
0:00:43.6]} 40. g4 {[%clk 0:00:46.1]} 40... Ra2+ {[%clk 0:00:41.1]} 41. Ke1
{[%clk 0:00:46.1]} 41... Ra1+ {[%clk 0:00:40.7]} 42. Kd2 {[%clk 0:00:46.3]}
42... Ra2+ {[%clk 0:00:36.1]} 43. Kc1 {[%clk 0:00:46.6]} 43... Nf6 {[%clk
0:00:33.7]} 44. Rxf6 {[%clk 0:00:46.3]} 44... Kh8 {[%clk 0:00:34.6]} 45. Rff7
{[%clk 0:00:45.9]} 45... h5 {[%clk 0:00:32.4]} 46. gxh5 {[%clk 0:00:42.7]} 46...
Rf2 {[%clk 0:00:28.4]} 47. h4 {[%clk 0:00:38]} 47... Rg2 {[%clk 0:00:25.4]} 48.
Ng5 {[%clk 0:00:36]} 48... Rg1+ {[%clk 0:00:19]} 49. Kd2 {[%clk 0:00:36.1]}
49... Rg2+ {[%clk 0:00:19.9]} 50. Ke3 {[%clk 0:00:35.7]} 50... Rxg5 {[%clk
0:00:16.9]} 51. hxg5 {[%clk 0:00:35.1]} 51... Kh7 {[%clk 0:00:17.8]} 52. Rxg7+
{[%clk 0:00:33.9]} 52... Kh8 {[%clk 0:00:17.6]} 53. Rgd7 {[%clk 0:00:33.9]} 1-0

[Event "Late-Titled-Tuesday-Blitz-April-30-2024"]
[Site "Chess.com"]
[Date "2024.04.30"]
[Round "5"]
[White "dennisodessa"]
[Black "pirulillo"]
[Result "0-1"]
[WhiteElo "2536"]
[BlackElo "2339"]
[TimeControl "180+1"]
[EndTime "14:57:37 PDT"]
[Termination "pirulillo won on time"]

1. d4 {[%clk 0:03:00.2]} 1... Nf6 {[%clk 0:02:59.5]} 2. c4 {[%clk 0:03:00.7]}
2... g6 {[%clk 0:02:58.8]} 3. Nc3 {[%clk 0:03:01.3]} 3... Bg7 {[%clk 0:02:58.8]}
4. e4 {[%clk 0:03:01.7]} 4... d6 {[%clk 0:02:58.8]} 5. f3 {[%clk 0:03:02.2]}
5... O-O {[%clk 0:02:58.7]} 6. Be3 {[%clk 0:03:02.8]} 6... b6 {[%clk 0:02:58.4]}
7. Bd3 {[%clk 0:03:02.2]} 7... a6 {[%clk 0:02:58]} 8. Nge2 {[%clk 0:03:02.6]}
8... c5 {[%clk 0:02:57.1]} 9. O-O {[%clk 0:03:01.7]} 9... Nc6 {[%clk 0:02:55.6]}
10. Qd2 {[%clk 0:03:02.2]} 10... cxd4 {[%clk 0:02:54.6]} 11. Nxd4 {[%clk
0:03:03]} 11... Bb7 {[%clk 0:02:48.8]} 12. Rac1 {[%clk 0:03:01.2]} 12... Rc8
{[%clk 0:02:39]} 13. Rfd1 {[%clk 0:02:40.7]} 13... Nd7 {[%clk 0:02:25.6]} 14.
Nxc6 {[%clk 0:02:38.7]} 14... Bxc6 {[%clk 0:02:24.8]} 15. Nd5 {[%clk 0:02:39.6]}
15... e6 {[%clk 0:02:15.9]} 16. Nc3 {[%clk 0:02:37.2]} 16... Qc7 {[%clk
0:02:13.5]} 17. b3 {[%clk 0:02:31.2]} 17... Rfd8 {[%clk 0:02:09.5]} 18. Bf1
{[%clk 0:02:23.8]} 18... Nf6 {[%clk 0:02:02.1]} 19. Qf2 {[%clk 0:02:18.4]} 19...
Rb8 {[%clk 0:01:58]} 20. Rd2 {[%clk 0:02:07.8]} 20... Qb7 {[%clk 0:01:50.2]} 21.
Qh4 {[%clk 0:01:47.8]} 21... Ne8 {[%clk 0:01:26.4]} 22. Bg5 {[%clk 0:01:29.1]}
22... Rdc8 {[%clk 0:01:24.9]} 23. Be3 {[%clk 0:01:14.3]} 23... b5 {[%clk
0:01:23.7]} 24. cxb5 {[%clk 0:01:15.2]} 24... axb5 {[%clk 0:01:23.4]} 25. Rdc2
{[%clk 0:01:14]} 25... b4 {[%clk 0:01:18.6]} 26. Ne2 {[%clk 0:01:07.3]} 26...
Bd7 {[%clk 0:01:10.5]} 27. Qe1 {[%clk 0:00:59.9]} 27... Rxc2 {[%clk 0:00:59.5]}
28. Rxc2 {[%clk 0:01:00.3]} 28... Rc8 {[%clk 0:00:59.5]} 29. Rxc8 {[%clk
0:00:59.8]} 29... Bxc8 {[%clk 0:00:58.2]} 30. Bd4 {[%clk 0:00:54.9]} 30... Bf8
{[%clk 0:00:55.3]} 31. Nc1 {[%clk 0:00:50]} 31... d5 {[%clk 0:00:52.5]} 32. exd5
{[%clk 0:00:45.7]} 32... Qxd5 {[%clk 0:00:52.3]} 33. Bf2 {[%clk 0:00:39.2]}
33... Nc7 {[%clk 0:00:46.5]} 34. Bc4 {[%clk 0:00:39]} 34... Qa8 {[%clk
0:00:44.9]} 35. Nd3 {[%clk 0:00:35.2]} 35... Qxa2 {[%clk 0:00:42.8]} 36. Nxb4
{[%clk 0:00:35.3]} 36... Qa3 {[%clk 0:00:39.6]} 37. Nc2 {[%clk 0:00:27.3]} 37...
Qb2 {[%clk 0:00:39]} 38. Bd4 {[%clk 0:00:15.7]} 38... Qxc2 {[%clk 0:00:33.9]}
39. Qe5 {[%clk 0:00:16.6]} 39... f5 {[%clk 0:00:15.5]} 40. Qh8+ {[%clk
0:00:06.5]} 40... Kf7 {[%clk 0:00:15.3]} 41. Qxh7+ {[%clk 0:00:07.4]} 41... Ke8
{[%clk 0:00:15.4]} 42. Qxg6+ {[%clk 0:00:08]} 42... Kd8 {[%clk 0:00:14.3]} 43.
Bf6+ {[%clk 0:00:06.6]} 43... Be7 {[%clk 0:00:14.6]} 44. Qg8+ {[%clk 0:00:01.7]}
44... Ne8 {[%clk 0:00:12.8]} 45. Qf7 {[%clk 0:00:02.6]} 45... Nxf6 {[%clk
0:00:12.1]} 0-1